[Event "*** Titled Tuesday Blitz"]
[Site "Chess.com"]
[Date "2020.12.01"]
[Round "8"]
[White "midedu"]
[Black "Tsyhanchuk_Stanislav"]
[Result "1-0"]
[WhiteElo "2115"]
[BlackElo "2215"]
[TimeControl "180+1"]
[EndTime "11:27:44 PST"]
[Termination "midedu won by checkmate"]

1. e4 {[%clk 0:03:00.9]} 1... c6 {[%clk 0:02:59.7]} 2. d4 {[%clk 0:03:00.4]}
2... d5 {[%clk 0:03:00.6]} 3. Nd2 {[%clk 0:03:00.6]} 3... dxe4 {[%clk
0:03:00.8]} 4. Nxe4 {[%clk 0:02:59.8]} 4... Bf5 {[%clk 0:03:01.4]} 5. Ng3 {[%clk
0:02:59.8]} 5... Bg6 {[%clk 0:03:02]} 6. Nf3 {[%clk 0:03:00.3]} 6... Nd7 {[%clk
0:03:01.8]} 7. Bc4 {[%clk 0:03:00.2]} 7... e6 {[%clk 0:03:01.6]} 8. Qe2 {[%clk
0:02:59.9]} 8... Qc7 {[%clk 0:03:00.2]} 9. O-O {[%clk 0:02:58.8]} 9... Ngf6
{[%clk 0:02:59.4]} 10. Re1 {[%clk 0:02:57]} 10... Be7 {[%clk 0:02:54.7]} 11. c3
{[%clk 0:02:39.9]} 11... Nd5 {[%clk 0:02:23.5]} 12. Ne4 {[%clk 0:02:21]} 12...
O-O {[%clk 0:02:16.6]} 13. Bb3 {[%clk 0:02:17.9]} 13... N7f6 {[%clk 0:02:10.4]}
14. Ng3 {[%clk 0:01:48.1]} 14... a5 {[%clk 0:01:58.8]} 15. Ne5 {[%clk
0:01:45.5]} 15... a4 {[%clk 0:01:55]} 16. Nxg6 {[%clk 0:01:43.7]} 16... hxg6
{[%clk 0:01:54.1]} 17. Bc2 {[%clk 0:01:43.4]} 17... a3 {[%clk 0:01:50.1]} 18.
Qf3 {[%clk 0:01:22.9]} 18... axb2 {[%clk 0:01:46.2]} 19. Bxb2 {[%clk 0:01:22.6]}
19... Ba3 {[%clk 0:01:43]} 20. Reb1 {[%clk 0:01:21.9]} 20... Bxb2 {[%clk
0:01:37.9]} 21. Rxb2 {[%clk 0:01:21.3]} 21... Ra3 {[%clk 0:01:32.5]} 22. Rb3
{[%clk 0:01:21]} 22... Rfa8 {[%clk 0:01:30.9]} 23. Rxa3 {[%clk 0:01:01]} 23...
Rxa3 {[%clk 0:01:28.6]} 24. Bb3 {[%clk 0:01:00.8]} 24... Qa5 {[%clk 0:01:22.9]}
25. Rc1 {[%clk 0:00:59.8]} 25... Qc7 {[%clk 0:00:37.8]} 26. Ne2 {[%clk
0:00:57.2]} 26... Qd6 {[%clk 0:00:25.8]} 27. g3 {[%clk 0:00:53.9]} 27... b6
{[%clk 0:00:21.3]} 28. Rd1 {[%clk 0:00:38.6]} 28... Ne7 {[%clk 0:00:19.7]} 29.
Nf4 {[%clk 0:00:35.2]} 29... Nfd5 {[%clk 0:00:18.2]} 30. Ne2 {[%clk 0:00:28]}
30... Nf5 {[%clk 0:00:17.6]} 31. Qd3 {[%clk 0:00:23.3]} 31... b5 {[%clk
0:00:15.5]} 32. Nc1 {[%clk 0:00:18.2]} 32... Ra8 {[%clk 0:00:13.5]} 33. Qd2
{[%clk 0:00:17.8]} 33... Rd8 {[%clk 0:00:12.5]} 34. Nd3 {[%clk 0:00:17.7]} 34...
Nb6 {[%clk 0:00:09.3]} 35. Qe1 {[%clk 0:00:11]} 35... Nd7 {[%clk 0:00:07.2]} 36.
Qe4 {[%clk 0:00:08.3]} 36... c5 {[%clk 0:00:05.3]} 37. dxc5 {[%clk 0:00:07.3]}
37... Nxc5 {[%clk 0:00:06.2]} 38. Nxc5 {[%clk 0:00:07.5]} 38... Qxd1+ {[%clk
0:00:01.9]} 39. Bxd1 {[%clk 0:00:06.8]} 39... Rxd1+ {[%clk 0:00:02.8]} 40. Kg2
{[%clk 0:00:07.3]} 40... Rd2 {[%clk 0:00:02.6]} 41. a4 {[%clk 0:00:04.7]} 41...
bxa4 {[%clk 0:00:02]} 42. Nxa4 {[%clk 0:00:04.4]} 42... Rd6 {[%clk 0:00:02.9]}
43. c4 {[%clk 0:00:04.2]} 43... Rd2 {[%clk 0:00:03]} 44. c5 {[%clk 0:00:04]}
44... Ra2 {[%clk 0:00:03.9]} 45. Nb6 {[%clk 0:00:03.8]} 45... Rb2 {[%clk
0:00:02.8]} 46. c6 {[%clk 0:00:03.6]} 46... Rxb6 {[%clk 0:00:01.2]} 47. c7
{[%clk 0:00:03.7]} 47... Ne7 {[%clk 0:00:02.1]} 48. Qa8+ {[%clk 0:00:03.4]}
48... Kh7 {[%clk 0:00:01.8]} 49. c8=Q {[%clk 0:00:03.8]} 49... Rc6 {[%clk
0:00:02.5]} 50. Qcxc6 {[%clk 0:00:02.8]} 50... Nc8 {[%clk 0:00:03.4]} 51. Qaxc8
{[%clk 0:00:02.9]} 51... g5 {[%clk 0:00:02.9]} 52. Qf8 {[%clk 0:00:03.4]} 52...
g4 {[%clk 0:00:03.8]} 53. Qxf7 {[%clk 0:00:03.3]} 53... e5 {[%clk 0:00:03.7]}
54. Qcg6+ {[%clk 0:00:03.1]} 54... Kh8 {[%clk 0:00:04.3]} 55. Qfxg7# {[%clk
0:00:03.6]} 1-0

[Event "*** Titled Tuesday Blitz"]
[Site "Chess.com"]
[Date "2020.12.01"]
[Round "8"]
[White "Konavets"]
[Black "Buffy7"]
[Result "1-0"]
[WhiteElo "2997"]
[BlackElo "2688"]
[TimeControl "180+1"]
[EndTime "11:27:45 PST"]
[Termination "Konavets won by resignation"]

1. e4 {[%clk 0:03:00.9]} 1... c6 {[%clk 0:02:59.4]} 2. d4 {[%clk 0:03:00.6]}
2... d5 {[%clk 0:02:59.5]} 3. exd5 {[%clk 0:03:01.5]} 3... cxd5 {[%clk
0:02:59.7]} 4. Bd3 {[%clk 0:03:02.4]} 4... Nc6 {[%clk 0:02:58.7]} 5. c3 {[%clk
0:03:02.9]} 5... Nf6 {[%clk 0:02:56.1]} 6. Nf3 {[%clk 0:03:02.1]} 6... Bg4
{[%clk 0:02:55.1]} 7. Qb3 {[%clk 0:03:01.6]} 7... Qc7 {[%clk 0:02:22.9]} 8. Nbd2
{[%clk 0:03:01.4]} 8... O-O-O {[%clk 0:02:11.4]} 9. O-O {[%clk 0:02:58.8]} 9...
e6 {[%clk 0:02:10.3]} 10. Re1 {[%clk 0:02:45.5]} 10... Bd6 {[%clk 0:02:10.1]}
11. Bb5 {[%clk 0:02:45.9]} 11... Nd7 {[%clk 0:01:54.4]} 12. a4 {[%clk
0:02:21.1]} 12... h6 {[%clk 0:01:44.8]} 13. a5 {[%clk 0:02:19.5]} 13... a6
{[%clk 0:01:39.4]} 14. Bf1 {[%clk 0:02:12.9]} 14... Nxa5 {[%clk 0:01:35.5]} 15.
Qa4 {[%clk 0:02:12.9]} 15... Nc4 {[%clk 0:01:30.7]} 16. Nxc4 {[%clk 0:02:06.2]}
16... dxc4 {[%clk 0:01:30.9]} 17. Nd2 {[%clk 0:02:06.9]} 17... Nb6 {[%clk
0:01:26.6]} 18. Qa2 {[%clk 0:02:04.6]} 18... Bxh2+ {[%clk 0:01:23.6]} 19. Kh1
{[%clk 0:02:05]} 19... Rd5 {[%clk 0:01:16.7]} 20. f3 {[%clk 0:01:24.9]} 20...
Bg3 {[%clk 0:01:10.2]} 21. fxg4 {[%clk 0:01:20.6]} 21... Bxe1 {[%clk 0:01:07.6]}
22. Nxc4 {[%clk 0:01:21.1]} 22... Nxc4 {[%clk 0:00:59.1]} 23. Qxc4 {[%clk
0:01:22]} 23... Bg3 {[%clk 0:00:55.2]} 24. Qxc7+ {[%clk 0:01:09.3]} 24... Bxc7
{[%clk 0:00:56.1]} 25. Be2 {[%clk 0:01:09.7]} 25... e5 {[%clk 0:00:44]} 26. Bf3
{[%clk 0:00:55.6]} 26... Rdd8 {[%clk 0:00:43.5]} 27. Be3 {[%clk 0:00:46.5]}
27... Rhe8 {[%clk 0:00:41.7]} 28. Rf1 {[%clk 0:00:44.5]} 28... e4 {[%clk
0:00:39.2]} 29. Bd1 {[%clk 0:00:42.6]} 29... f6 {[%clk 0:00:39.4]} 30. Kg1
{[%clk 0:00:33.8]} 30... Bg3 {[%clk 0:00:38.8]} 31. Rf5 {[%clk 0:00:30.8]} 31...
Bh4 {[%clk 0:00:33.6]} 32. Kf1 {[%clk 0:00:31.2]} 32... Bg5 {[%clk 0:00:26.1]}
33. Bg1 {[%clk 0:00:31.6]} 33... Bc1 {[%clk 0:00:25.4]} 34. b4 {[%clk
0:00:30.8]} 34... b5 {[%clk 0:00:22.8]} 35. Ke2 {[%clk 0:00:19.8]} 35... Kb7
{[%clk 0:00:21.9]} 36. Bc2 {[%clk 0:00:18.9]} 36... Rc8 {[%clk 0:00:21.2]} 37.
Rc5 {[%clk 0:00:18.2]} 37... Rxc5 {[%clk 0:00:19.2]} 38. bxc5 {[%clk 0:00:19]}
38... Kc6 {[%clk 0:00:19.2]} 39. Bb3 {[%clk 0:00:18.3]} 39... Rd8 {[%clk
0:00:18.6]} 40. Bf7 {[%clk 0:00:14.1]} 40... a5 {[%clk 0:00:18.3]} 41. Bg6
{[%clk 0:00:14.5]} 41... b4 {[%clk 0:00:16.5]} 42. Bxe4+ {[%clk 0:00:12.6]}
42... Kb5 {[%clk 0:00:16.4]} 43. Bd3+ {[%clk 0:00:12]} 43... Ka4 {[%clk
0:00:16.8]} 44. cxb4 {[%clk 0:00:12.5]} 44... axb4 {[%clk 0:00:16.9]} 45. Kd1
{[%clk 0:00:13.1]} 45... Bf4 {[%clk 0:00:16.7]} 46. Kc2 {[%clk 0:00:12.8]} 46...
b3+ {[%clk 0:00:16.6]} 47. Kc3 {[%clk 0:00:10]} 47... Ka3 {[%clk 0:00:14.1]} 48.
Bf2 {[%clk 0:00:08.1]} 48... b2 {[%clk 0:00:14]} 49. Bb1 {[%clk 0:00:08.4]}
49... g6 {[%clk 0:00:10.9]} 50. Kc4 {[%clk 0:00:04.8]} 50... f5 {[%clk
0:00:08.5]} 51. gxf5 {[%clk 0:00:05]} 51... gxf5 {[%clk 0:00:09.4]} 52. d5
{[%clk 0:00:05.6]} 52... Rg8 {[%clk 0:00:09.8]} 53. c6 {[%clk 0:00:05.4]} 53...
Rxg2 {[%clk 0:00:09.5]} 54. Bc5+ {[%clk 0:00:05.9]} 54... Ka4 {[%clk 0:00:09.8]}
55. d6 {[%clk 0:00:06.8]} 55... Rg1 {[%clk 0:00:06]} 56. Bxg1 {[%clk 0:00:05.6]}
56... Bxd6 {[%clk 0:00:03.5]} 57. Bc5 {[%clk 0:00:05.7]} 57... Bc7 {[%clk
0:00:03.4]} 58. Bb4 {[%clk 0:00:06.2]} 1-0

[Event "*** Titled Tuesday Blitz"]
[Site "Chess.com"]
[Date "2020.12.01"]
[Round "8"]
[White "Vincent_Vega95"]
[Black "Mikhail_Golubev"]
[Result "1/2-1/2"]
[WhiteElo "2760"]
[BlackElo "2577"]
[TimeControl "180+1"]
[EndTime "11:27:45 PST"]
[Termination "Game drawn by repetition"]

1. d4 {[%clk 0:03:00.9]} 1... Nf6 {[%clk 0:02:59.3]} 2. c4 {[%clk 0:03:01.5]}
2... g6 {[%clk 0:02:59.1]} 3. Nc3 {[%clk 0:03:02]} 3... Bg7 {[%clk 0:02:59]} 4.
e4 {[%clk 0:03:02.5]} 4... d6 {[%clk 0:02:58.9]} 5. Be2 {[%clk 0:03:03.1]} 5...
O-O {[%clk 0:02:57.3]} 6. Be3 {[%clk 0:03:03.2]} 6... Nc6 {[%clk 0:02:55.6]} 7.
d5 {[%clk 0:02:59.6]} 7... Ne5 {[%clk 0:02:54.3]} 8. h3 {[%clk 0:02:59.9]} 8...
e6 {[%clk 0:02:38.2]} 9. f4 {[%clk 0:03:00.1]} 9... Ned7 {[%clk 0:02:37.7]} 10.
dxe6 {[%clk 0:02:30.7]} 10... fxe6 {[%clk 0:02:38.6]} 11. g4 {[%clk 0:02:31.1]}
11... b6 {[%clk 0:02:37.5]} 12. g5 {[%clk 0:02:24.8]} 12... Nh5 {[%clk 0:02:37]}
13. Bxh5 {[%clk 0:02:18.3]} 13... gxh5 {[%clk 0:02:37.9]} 14. Qxh5 {[%clk
0:02:17.4]} 14... Bb7 {[%clk 0:02:36.6]} 15. Nge2 {[%clk 0:02:17.4]} 15... Nc5
{[%clk 0:02:28.3]} 16. Bxc5 {[%clk 0:02:17.3]} 16... bxc5 {[%clk 0:02:19.9]} 17.
O-O-O {[%clk 0:02:02.7]} 17... Bxc3 {[%clk 0:01:56.4]} 18. Nxc3 {[%clk
0:02:00.7]} 18... Rxf4 {[%clk 0:01:55.9]} 19. g6 {[%clk 0:01:41.3]} 19... Qh4
{[%clk 0:01:36.1]} 20. gxh7+ {[%clk 0:01:36.2]} 20... Kh8 {[%clk 0:01:35.9]} 21.
Qg6 {[%clk 0:01:27.3]} 21... Rf6 {[%clk 0:01:35.4]} 22. Qg4 {[%clk 0:01:22.7]}
22... Qh6+ {[%clk 0:01:33.6]} 23. Kb1 {[%clk 0:01:19.3]} 23... Qxh7 {[%clk
0:01:27.6]} 24. Rdf1 {[%clk 0:01:13.9]} 24... Rg8 {[%clk 0:01:22.6]} 25. Qe2
{[%clk 0:01:02.3]} 25... Rfg6 {[%clk 0:01:11.7]} 26. Rh2 {[%clk 0:00:57.8]}
26... Rg3 {[%clk 0:01:01.6]} 27. Rhf2 {[%clk 0:00:55.4]} 27... Rxh3 {[%clk
0:00:21]} 28. Rf7 {[%clk 0:00:47]} 28... Qh4 {[%clk 0:00:21]} 29. Rxc7 {[%clk
0:00:33]} 29... Rh2 {[%clk 0:00:19.5]} 30. Qd1 {[%clk 0:00:33.1]} 30... Bxe4+
{[%clk 0:00:17.4]} 31. Ka1 {[%clk 0:00:33.5]} 31... Bf5 {[%clk 0:00:15.9]} 32.
Qxd6 {[%clk 0:00:28.8]} 32... Qg3 {[%clk 0:00:16.1]} 33. Qe7 {[%clk 0:00:24]}
33... Qg7 {[%clk 0:00:14.1]} 34. Qxc5 {[%clk 0:00:22.6]} 34... Qf6 {[%clk
0:00:13.8]} 35. a3 {[%clk 0:00:21.2]} 35... Rb8 {[%clk 0:00:12.9]} 36. Rc8+
{[%clk 0:00:17.9]} 36... Rxc8 {[%clk 0:00:13.1]} 37. Qxc8+ {[%clk 0:00:18.8]}
37... Kh7 {[%clk 0:00:13.6]} 38. Rg1 {[%clk 0:00:19.2]} 38... Bg6 {[%clk
0:00:13]} 39. Qd7+ {[%clk 0:00:19.1]} 39... Qf7 {[%clk 0:00:12]} 40. Qd4 {[%clk
0:00:18.8]} 40... Qf2 {[%clk 0:00:10.6]} 41. Qd7+ {[%clk 0:00:17.3]} 41... Kh6
{[%clk 0:00:10]} 42. Rxg6+ {[%clk 0:00:10.4]} 42... Kxg6 {[%clk 0:00:09.5]} 43.
Qxe6+ {[%clk 0:00:11.1]} 43... Kh7 {[%clk 0:00:08.9]} 44. Qe7+ {[%clk
0:00:10.9]} 44... Kg8 {[%clk 0:00:08.4]} 45. Qb4 {[%clk 0:00:11.3]} 45... a5
{[%clk 0:00:07.1]} 46. Qb5 {[%clk 0:00:10.8]} 46... Qf1+ {[%clk 0:00:05.6]} 47.
Ka2 {[%clk 0:00:11.3]} 47... Qf2 {[%clk 0:00:05.7]} 48. Nd5 {[%clk 0:00:10.8]}
48... Qd2 {[%clk 0:00:05]} 49. Qb3 {[%clk 0:00:08.8]} 49... Kh8 {[%clk
0:00:04.9]} 50. Qc3+ {[%clk 0:00:08.5]} 50... Qxc3 {[%clk 0:00:04.1]} 51. Nxc3
{[%clk 0:00:09.4]} 51... Kg7 {[%clk 0:00:04.9]} 52. Kb3 {[%clk 0:00:08.3]} 52...
Kf6 {[%clk 0:00:05.1]} 53. Nd5+ {[%clk 0:00:08.5]} 53... Ke5 {[%clk 0:00:05]}
54. Nc3 {[%clk 0:00:08.2]} 54... Kd4 {[%clk 0:00:04.3]} 55. Nb5+ {[%clk
0:00:08.6]} 55... Kc5 {[%clk 0:00:04.5]} 56. Nc3 {[%clk 0:00:09.2]} 56... Kd4
{[%clk 0:00:04.7]} 57. Nb5+ {[%clk 0:00:09.6]} 57... Kc5 {[%clk 0:00:04.9]} 58.
Nc3 {[%clk 0:00:09.4]} 58... Kd4 {[%clk 0:00:05]} 1/2-1/2

[Event "*** Titled Tuesday Blitz"]
[Site "Chess.com"]
[Date "2020.12.01"]
[Round "8"]
[White "Homino"]
[Black "PriSachu"]
[Result "0-1"]
[WhiteElo "2379"]
[BlackElo "2531"]
[TimeControl "180+1"]
[EndTime "11:27:47 PST"]
[Termination "PriSachu won by resignation"]

1. e4 {[%clk 0:03:00.9]} 1... e5 {[%clk 0:02:54.2]} 2. Nf3 {[%clk 0:02:54.6]}
2... Nc6 {[%clk 0:02:51.2]} 3. Bb5 {[%clk 0:02:54.5]} 3... a6 {[%clk 0:02:50.6]}
4. Ba4 {[%clk 0:02:54.1]} 4... Nf6 {[%clk 0:02:51.1]} 5. O-O {[%clk 0:02:53.8]}
5... Bc5 {[%clk 0:02:51.4]} 6. c3 {[%clk 0:02:51.9]} 6... O-O {[%clk 0:02:51.6]}
7. d4 {[%clk 0:02:48.7]} 7... Ba7 {[%clk 0:02:51.6]} 8. Bc2 {[%clk 0:02:43.5]}
8... d6 {[%clk 0:02:38.6]} 9. h3 {[%clk 0:02:42.4]} 9... h6 {[%clk 0:02:37.2]}
10. a4 {[%clk 0:02:39.6]} 10... Re8 {[%clk 0:02:36.4]} 11. Re1 {[%clk
0:02:34.8]} 11... Bd7 {[%clk 0:01:29.4]} 12. a5 {[%clk 0:02:28.9]} 12... Rc8
{[%clk 0:01:23.2]} 13. d5 {[%clk 0:02:15.6]} 13... Ne7 {[%clk 0:01:22.5]} 14.
Nbd2 {[%clk 0:02:07.8]} 14... Ng6 {[%clk 0:01:21.4]} 15. Nc4 {[%clk 0:02:02.9]}
15... Nh5 {[%clk 0:01:16.7]} 16. Be3 {[%clk 0:01:50.1]} 16... Bxe3 {[%clk
0:01:14.4]} 17. Nxe3 {[%clk 0:01:51]} 17... Nhf4 {[%clk 0:01:12.1]} 18. c4
{[%clk 0:01:38.1]} 18... Qf6 {[%clk 0:01:10.7]} 19. b4 {[%clk 0:01:34.8]} 19...
Nh4 {[%clk 0:00:43.4]} 20. Nxh4 {[%clk 0:01:28.9]} 20... Qxh4 {[%clk 0:00:44.3]}
21. Qf3 {[%clk 0:01:23.8]} 21... c5 {[%clk 0:00:31.4]} 22. dxc6 {[%clk
0:01:18.5]} 22... bxc6 {[%clk 0:00:28.9]} 23. Red1 {[%clk 0:01:04.9]} 23... Re6
{[%clk 0:00:28.8]} 24. Nf5 {[%clk 0:01:01.5]} 24... Qg5 {[%clk 0:00:28.7]} 25.
h4 {[%clk 0:00:46.4]} 25... Qf6 {[%clk 0:00:29]} 26. g3 {[%clk 0:00:43.3]} 26...
Ng6 {[%clk 0:00:29.2]} 27. h5 {[%clk 0:00:38.4]} 27... Ne7 {[%clk 0:00:28]} 28.
Nxe7+ {[%clk 0:00:30.9]} 28... Qxe7 {[%clk 0:00:26.3]} 29. Qd3 {[%clk
0:00:26.2]} 29... Rf6 {[%clk 0:00:17.5]} 30. Qe2 {[%clk 0:00:25.5]} 30... Be6
{[%clk 0:00:12.4]} 31. Bd3 {[%clk 0:00:25.5]} 31... Qd7 {[%clk 0:00:12.2]} 32.
b5 {[%clk 0:00:25.2]} 32... Bg4 {[%clk 0:00:12.4]} 33. Qd2 {[%clk 0:00:21.4]}
33... Bf3 {[%clk 0:00:12.4]} 34. Bf1 {[%clk 0:00:18.4]} 34... Qg4 {[%clk
0:00:12.7]} 35. bxa6 {[%clk 0:00:17.2]} 35... Qxh5 {[%clk 0:00:11.4]} 36. Bg2
{[%clk 0:00:17.8]} 36... Bxd1 {[%clk 0:00:11.2]} 37. Rxd1 {[%clk 0:00:17.3]}
37... Qg4 {[%clk 0:00:10.6]} 38. a7 {[%clk 0:00:16.5]} 38... Qd7 {[%clk
0:00:10.4]} 39. Qe3 {[%clk 0:00:15.9]} 39... Ra8 {[%clk 0:00:09]} 40. Rb1 {[%clk
0:00:12.5]} 40... Qxa7 {[%clk 0:00:09.4]} 41. Qxa7 {[%clk 0:00:09.1]} 41... Rxa7
{[%clk 0:00:10.3]} 42. Rb6 {[%clk 0:00:09.1]} 42... Rxa5 {[%clk 0:00:09.6]} 43.
Rxc6 {[%clk 0:00:09.2]} 43... Rc5 {[%clk 0:00:10.1]} 44. Rxc5 {[%clk 0:00:05.8]}
44... dxc5 {[%clk 0:00:11]} 45. Kf1 {[%clk 0:00:06]} 45... Rd6 {[%clk
0:00:11.6]} 46. Ke1 {[%clk 0:00:04.7]} 46... Rd4 {[%clk 0:00:12.1]} 47. Bf1
{[%clk 0:00:04.4]} 47... Rxe4+ {[%clk 0:00:12.7]} 48. Kd2 {[%clk 0:00:04.7]}
48... Rd4+ {[%clk 0:00:13.5]} 49. Ke3 {[%clk 0:00:04.1]} 49... f5 {[%clk
0:00:14.4]} 50. f3 {[%clk 0:00:04]} 50... Kf7 {[%clk 0:00:14]} 51. Be2 {[%clk
0:00:03.8]} 51... Kf6 {[%clk 0:00:14.4]} 52. Kf2 {[%clk 0:00:03.7]} 52... g5
{[%clk 0:00:14.9]} 53. Ke3 {[%clk 0:00:03.8]} 53... f4+ {[%clk 0:00:15.4]} 54.
gxf4 {[%clk 0:00:03.4]} 54... exf4+ {[%clk 0:00:16.3]} 55. Kf2 {[%clk
0:00:04.3]} 55... Ke5 {[%clk 0:00:16.8]} 56. Bf1 {[%clk 0:00:04.3]} 56... Rd2+
{[%clk 0:00:17.2]} 57. Ke1 {[%clk 0:00:04.5]} 57... Rc2 {[%clk 0:00:17.6]} 58.
Bd3 {[%clk 0:00:04.1]} 58... Rc3 {[%clk 0:00:17.3]} 59. Kd2 {[%clk 0:00:04.6]}
59... Rxd3+ {[%clk 0:00:17.3]} 60. Kxd3 {[%clk 0:00:05.5]} 60... h5 {[%clk
0:00:17.7]} 0-1

[Event "*** Titled Tuesday Blitz"]
[Site "Chess.com"]
[Date "2020.12.01"]
[Round "8"]
[White "ViktoriyaTarasova"]
[Black "Road2GM3000"]
[Result "1-0"]
[WhiteElo "2284"]
[BlackElo "2127"]
[TimeControl "180+1"]
[EndTime "11:27:52 PST"]
[Termination "ViktoriyaTarasova won on time"]

1. d4 {[%clk 0:03:00.9]} 1... d5 {[%clk 0:03:00]} 2. c4 {[%clk 0:03:00.6]} 2...
e6 {[%clk 0:03:00.3]} 3. Nc3 {[%clk 0:03:00.1]} 3... Nf6 {[%clk 0:03:00.9]} 4.
cxd5 {[%clk 0:03:00]} 4... exd5 {[%clk 0:02:59.2]} 5. Bg5 {[%clk 0:03:00]} 5...
c6 {[%clk 0:02:59.3]} 6. Qc2 {[%clk 0:02:59.6]} 6... Be7 {[%clk 0:02:59.6]} 7.
e3 {[%clk 0:03:00]} 7... O-O {[%clk 0:02:58.8]} 8. Bd3 {[%clk 0:03:00.5]} 8...
Nbd7 {[%clk 0:02:54.8]} 9. Nf3 {[%clk 0:02:59.1]} 9... Re8 {[%clk 0:02:53]} 10.
O-O {[%clk 0:02:58.8]} 10... Nf8 {[%clk 0:02:53.5]} 11. Rab1 {[%clk 0:02:58.1]}
11... Bg4 {[%clk 0:02:53.5]} 12. Ne5 {[%clk 0:02:56.3]} 12... Bh5 {[%clk
0:02:53.3]} 13. b4 {[%clk 0:02:55.3]} 13... a6 {[%clk 0:02:51.7]} 14. a4 {[%clk
0:02:54.4]} 14... Ne6 {[%clk 0:02:49.1]} 15. Bh4 {[%clk 0:02:53.2]} 15... Bg6
{[%clk 0:02:47.9]} 16. f4 {[%clk 0:02:51.9]} 16... Nd7 {[%clk 0:02:44.5]} 17.
Bxe7 {[%clk 0:02:48.5]} 17... Qxe7 {[%clk 0:02:45.4]} 18. f5 {[%clk 0:02:48.8]}
18... Nxe5 {[%clk 0:02:19.3]} 19. dxe5 {[%clk 0:02:48.3]} 19... Nf8 {[%clk
0:02:16.7]} 20. fxg6 {[%clk 0:02:48]} 20... Nxg6 {[%clk 0:02:17.6]} 21. Bxg6
{[%clk 0:02:47]} 21... hxg6 {[%clk 0:02:18.5]} 22. Qd3 {[%clk 0:02:38.6]} 22...
Qxe5 {[%clk 0:02:18.2]} 23. Rbe1 {[%clk 0:02:37.9]} 23... Re6 {[%clk 0:02:17.1]}
24. b5 {[%clk 0:02:36.9]} 24... axb5 {[%clk 0:02:16.8]} 25. axb5 {[%clk
0:02:36.7]} 25... Ra3 {[%clk 0:02:17]} 26. Rc1 {[%clk 0:02:36]} 26... Qxe3+
{[%clk 0:02:16.7]} 27. Qxe3 {[%clk 0:02:35.6]} 27... Rxe3 {[%clk 0:02:17.6]} 28.
bxc6 {[%clk 0:02:26.4]} 28... bxc6 {[%clk 0:02:14.4]} 29. Nb1 {[%clk 0:02:25.4]}
29... Ra6 {[%clk 0:02:04.6]} 30. Nd2 {[%clk 0:02:25.2]} 30... Kf8 {[%clk
0:02:01.9]} 31. Nb3 {[%clk 0:02:20.5]} 31... Rxb3 {[%clk 0:01:59.2]} 32. Rf2
{[%clk 0:02:18.6]} 32... f5 {[%clk 0:01:40.4]} 33. Re2 {[%clk 0:02:18.3]} 33...
Rb4 {[%clk 0:01:34.1]} 34. Re6 {[%clk 0:02:16.6]} 34... Rc4 {[%clk 0:01:28.6]}
35. Rb1 {[%clk 0:02:13.9]} 35... Kf7 {[%clk 0:01:25.5]} 36. Rd6 {[%clk
0:02:13.1]} 36... Ra7 {[%clk 0:01:21.5]} 37. h3 {[%clk 0:02:08.9]} 37... Re7
{[%clk 0:01:21.8]} 38. Rb8 {[%clk 0:02:08.1]} 38... d4 {[%clk 0:01:19.2]} 39.
Rdd8 {[%clk 0:02:06.6]} 39... c5 {[%clk 0:01:14.1]} 40. Rf8+ {[%clk 0:02:05.2]}
40... Ke6 {[%clk 0:01:14]} 41. Rb6+ {[%clk 0:02:04.6]} 41... Kd5 {[%clk
0:01:12.3]} 42. Rxg6 {[%clk 0:01:59.9]} 42... Ke4 {[%clk 0:01:09.2]} 43. Rg5
{[%clk 0:01:52.3]} 43... Re5 {[%clk 0:01:03.3]} 44. Rxg7 {[%clk 0:01:49.4]}
44... d3 {[%clk 0:01:03.8]} 45. Rd8 {[%clk 0:01:46.8]} 45... Ke3 {[%clk
0:00:55.6]} 46. Rg3+ {[%clk 0:01:44.1]} 46... Ke2 {[%clk 0:00:46.1]} 47. Rdxd3
{[%clk 0:01:42.3]} 47... Rc1+ {[%clk 0:00:46.2]} 48. Kh2 {[%clk 0:01:42.2]}
48... c4 {[%clk 0:00:44]} 49. Ra3 {[%clk 0:01:42]} 49... f4 {[%clk 0:00:37.7]}
50. Rgf3 {[%clk 0:01:41.4]} 50... Re4 {[%clk 0:00:31.6]} 51. Ra2+ {[%clk
0:01:40.7]} 51... Ke1 {[%clk 0:00:28.8]} 52. Kg1 {[%clk 0:01:40.6]} 52... Kd1
{[%clk 0:00:22]} 53. h4 {[%clk 0:01:27.2]} 53... c3 {[%clk 0:00:21]} 54. Rd3+
{[%clk 0:01:17.7]} 54... Ke1 {[%clk 0:00:19.4]} 55. h5 {[%clk 0:00:59.7]} 55...
c2 {[%clk 0:00:19.4]} 56. Kh2 {[%clk 0:00:52.1]} 56... Re5 {[%clk 0:00:17.6]}
57. Kh3 {[%clk 0:00:48.7]} 57... Ke2 {[%clk 0:00:15.5]} 58. Rc3 {[%clk
0:00:43.2]} 58... Kd2 {[%clk 0:00:13.2]} 59. Rc8 {[%clk 0:00:43]} 59... Rxh5+
{[%clk 0:00:08.7]} 60. Kg4 {[%clk 0:00:42.8]} 60... Rd5 {[%clk 0:00:07.4]} 61.
Kxf4 {[%clk 0:00:23.6]} 61... Rd4+ {[%clk 0:00:06.5]} 62. Kg3 {[%clk 0:00:21.6]}
62... Kd1 {[%clk 0:00:05.5]} 63. Kf2 {[%clk 0:00:14.7]} 63... Rd2+ {[%clk
0:00:03.5]} 64. Kf1 {[%clk 0:00:14.5]} 64... Rb1 {[%clk 0:00:01.8]} 65. g4
{[%clk 0:00:13]} 1-0